bitfinex-derivatives/quotes_SOLF0:USTF0_20260305
["timestamp","ask_amount","ask_price","bid_price","bid_amount"]
[1772696128436,3.49803247,90.73,90.688,3.78963203]
[1772696128734,3.49803247,90.75,90.691,3.78963203]
[1772696129034,3.49803247,90.75,90.69,3.49803247]
[1772696129035,3.49803247,90.75,90.705,3.78963203]
[1772696130138,7.39165637,90.75,90.705,3.78963203]
[1772696130335,3.49803247,90.73,90.689,3.78963203]
[1772696130525,3.8936239,90.729,90.689,3.78963203]
[1772696131330,3.8936239,90.719,90.673,9.924]
[1772696131637,3.49803247,90.71,90.673,9.924]
[1772696132737,3.49803247,90.71,90.673,13.71363203]
[1772696133436,3.8936239,90.719,90.637,19.856]
[1772696133437,3.8936239,90.719,90.682,13.71263203]
[1772696133936,3.49803247,90.73,90.685,9.922]
[1772696134632,3.8936239,90.729,90.685,9.922]
[1772696135331,10.21886066,90.77,90.677,3.78963203]
[1772696135332,3.8936239,90.719,90.677,3.78963203]
[1772696135537,3.49803247,90.71,90.665,3.78963203]
[1772696135734,3.8936239,90.709,90.67,9.924]
[1772696138638,3.8936239,90.709,90.665,3.78963203]
[1772696141242,3.8936239,90.699,90.662,9.925]
[1772696144045,3.8936239,90.699,90.662,13.71463203]
[1772696144241,3.8936239,90.722,90.672,3.78963203]
[1772696144444,3.49803247,90.72,90.672,3.78963203]
[1772696145144,3.49803247,90.71,90.672,3.78963203]
[1772696145647,3.8936239,90.709,90.658,3.78963203]
[1772696146246,3.49803247,90.72,90.671,3.78963203]
[1772696146643,7.39165637,90.72,90.671,3.78963203]
[1772696148148,3.8936239,90.719,90.671,3.78963203]
[1772696148543,13.8126239,90.718,90.671,3.78963203]
[1772696148742,3.49993907,90.71,90.671,3.78963203]
[1772696150447,3.7028651,90.714,90.671,3.78963203]
[1772696152344,3.7028651,90.732,90.691,3.66740713]
[1772696152544,3.49993907,90.74,90.691,3.66740713]
[1772696153146,3.7028651,90.745,90.691,3.66740713]
[1772696153452,3.7028651,90.745,90.69,3.49993907]
[1772696153453,9.916,90.743,90.693,3.66740713]
[1772696153851,3.49993907,90.74,90.693,3.66740713]
[1772696154548,9.917,90.739,90.693,3.66740713]
[1772696154853,3.7028651,90.738,90.693,3.66740713]
[1772696155753,3.49993907,90.7,90.658,3.66740713]
[1772696156149,3.49993907,90.71,90.66,3.49993907]
[1772696156353,3.49993907,90.71,90.664,3.66740713]
[1772696157058,3.49993907,90.71,90.666,3.66740713]
[1772696157258,3.49993907,90.68,90.629,3.66740713]
[1772696157447,3.7028651,90.697,90.64,3.49993907]
[1772696157448,3.49993907,90.69,90.64,3.49993907]
[1772696157750,3.7028651,90.697,90.641,3.66740713]
[1772696157948,3.49993907,90.68,90.641,3.66740713]
[1772696158154,3.49993907,90.67,90.62,3.49993907]
[1772696158349,3.49993907,90.66,90.627,3.66740713]
[1772696158656,3.49993907,90.66,90.611,3.66740713]
[1772696161651,9.923,90.677,90.611,3.66740713]
[1772696161861,3.7028651,90.676,90.621,3.66740713]
[1772696162457,3.7028651,90.676,90.631,3.66740713]
[1772696162858,3.7028651,90.669,90.612,3.66740713]
[1772696163060,3.7028651,90.669,90.621,3.66740713]
[1772696163358,3.49993907,90.68,90.631,3.66740713]
[1772696163558,3.7028651,90.679,90.631,3.66740713]
[1772696166265,9.6471812,90.698,90.64,3.49993907]
[1772696166563,3.7028651,90.699,90.651,3.66740713]
[1772696166757,3.49993907,90.71,90.661,3.66740713]
[1772696167460,3.49993907,90.7,90.661,3.66740713]
[1772696167657,3.49993907,90.71,90.661,3.66740713]
[1772696168354,3.7028651,90.709,90.629,3.66740713]
[1772696168553,3.49993907,90.67,90.629,3.66740713]
[1772696168751,3.7028651,90.696,90.641,3.66740713]
[1772696168962,3.49993907,90.69,90.641,3.66740713]
[1772696169554,3.49993907,90.68,90.641,3.66740713]
[1772696170156,3.49993907,90.69,90.641,3.66740713]
[1772696170662,3.49993907,90.68,90.641,3.66740713]
[1772696177765,9.923,90.679,90.641,3.66740713]
[1772696179058,3.49993907,90.66,90.621,3.61806991]
[1772696180665,3.49993907,90.65,90.621,3.61806991]
[1772696181159,3.49993907,90.65,90.603,3.61806991]
[1772696181563,13.42593907,90.65,90.603,3.61806991]
[1772696181771,17.19437731,90.65,90.603,3.61806991]
[1772696183867,9.925,90.659,90.611,3.61806991]
[1772696185370,3.76843824,90.664,90.612,3.61806991]
[1772696186471,3.76843824,90.659,90.612,3.61806991]
[1772696188181,3.76843824,90.659,90.616,9.93]
[1772696189483,3.76843824,90.659,90.624,9.929]
[1772696189684,3.49993907,90.67,90.621,3.97353031]
[1772696190185,3.49993907,90.67,90.631,9.928]
[1772696190381,3.93726676,90.669,90.631,9.928]
[1772696192583,3.93726676,90.669,90.621,3.97353031]
[1772696192777,3.93726676,90.686,90.641,3.97353031]
[1772696194178,3.49993907,90.68,90.641,3.97353031]
[1772696195186,3.93726676,90.679,90.641,3.97353031]
[1772696195485,3.93726676,90.679,90.631,3.97353031]
[1772696197385,3.93726676,90.688,90.64,3.49993907]
[1772696197577,3.93726676,90.689,90.641,3.97353031]
[1772696198882,3.93726676,90.669,90.614,3.97353031]
[1772696199187,3.49993907,90.65,90.614,3.97353031]
[1772696200991,3.93726676,90.659,90.614,3.97353031]
[1772696204785,9.65047236,90.669,90.621,3.97353031]
[1772696204986,13.42393907,90.67,90.621,3.97353031]
[1772696205389,3.49993907,90.67,90.623,3.97353031]
[1772696207295,3.49993907,90.67,90.626,9.929]
[1772696208494,3.50343559,90.67,90.626,9.929]
[1772696209295,3.93726676,90.673,90.62,3.50343559]
[1772696209296,3.93726676,90.673,90.633,9.928]
[1772696209492,3.65046292,90.669,90.633,9.928]
[1772696210698,3.65046292,90.669,90.627,3.61219439]
[1772696211396,3.50343559,90.66,90.599,20.52369808]
[1772696211604,3.50343559,90.65,90.609,3.61219439]
[1772696212405,3.50343559,90.65,90.61,3.61219439]
[1772696213703,3.65046292,90.649,90.61,3.61219439]
[1772696215803,3.50343559,90.65,90.61,3.61219439]
[1772696217303,3.65046292,90.661,90.621,3.61219439]
[1772696218404,3.65046292,90.661,90.621,13.54119439]
[1772696219105,3.65046292,90.673,90.627,13.54119439]
[1772696219407,3.65046292,90.673,90.628,3.61219439]
[1772696219802,3.65046292,90.673,90.634,3.61219439]
[1772696220498,9.921,90.701,90.582,19.868]
[1772696220499,3.50343559,90.65,90.611,3.61219439]
[1772696220900,3.65046292,90.659,90.623,3.61219439]
[1772696221097,9.66195653,90.67,90.623,3.61219439]
[1772696221098,7.15389851,90.67,90.623,3.61219439]
[1772696221303,3.65046292,90.668,90.623,3.61219439]
[1772696221507,3.50343559,90.66,90.624,9.929]
[1772696222709,3.50343559,90.66,90.623,3.61219439]
[1772696222911,9.921,90.697,90.623,3.61219439]
[1772696222912,3.50343559,90.67,90.623,3.61219439]
[1772696223113,3.65046292,90.669,90.623,3.61219439]
[1772696223711,3.50343559,90.66,90.623,3.61219439]
[1772696224813,3.65046292,90.669,90.623,3.61219439]
[1772696225214,44.0,90.688,90.623,3.61219439]
[1772696225215,7.15389851,90.66,90.623,3.61219439]
[1772696228011,3.65046292,90.659,90.611,9.93]
[1772696228211,3.65046292,90.659,90.611,3.61219439]
[1772696228617,3.65046292,90.658,90.611,3.61219439]
[1772696230419,3.65046292,90.649,90.611,3.61219439]
[1772696230718,3.50343559,90.65,90.611,3.61219439]
[1772696230917,3.65046292,90.659,90.611,3.61219439]
[1772696232426,3.65046292,90.659,90.613,9.93]
[1772696232623,3.50343559,90.65,90.613,9.93]
[1772696233323,3.65046292,90.649,90.613,9.93]
[1772696234429,3.65046292,90.649,90.62,9.93]
[1772696235432,3.65046292,90.649,90.595,3.61219439]
[1772696236327,3.65046292,90.649,90.59,3.50343559]
[1772696236328,3.65046292,90.649,90.597,3.61219439]
[1772696237726,8.30545874,90.678,90.597,3.61219439]
[1772696237727,3.65046292,90.639,90.597,3.61219439]
[1772696238334,3.50343559,90.65,90.597,3.61219439]
[1772696238635,7.15389851,90.65,90.601,3.61219439]
[1772696239436,3.89532435,90.649,90.601,3.61219439]
[1772696239741,3.89532435,90.649,90.59,7.35621751]
[1772696239927,3.50343559,90.64,90.591,3.85278192]
[1772696240132,3.89532435,90.639,90.591,3.85278192]
[1772696240936,3.89532435,90.639,90.594,3.85278192]
[1772696242538,3.89532435,90.639,90.596,13.78478192]
[1772696242737,3.89532435,90.639,90.597,3.85278192]
[1772696243431,3.89532435,90.639,90.605,9.931]
[1772696243638,3.50343559,90.65,90.605,13.78378192]
[1772696243838,3.50343559,90.65,90.606,3.85278192]
[1772696244035,9.926,90.657,90.612,3.85278192]
[1772696244236,3.50343559,90.66,90.612,3.85278192]
[1772696244431,3.89532435,90.685,90.631,3.85278192]
[1772696244636,3.89532435,90.683,90.64,3.85278192]
[1772696245031,3.50343559,90.68,90.64,3.85278192]
[1772696245338,7.39875994,90.68,90.64,3.85278192]
[1772696245835,3.89532435,90.679,90.64,3.85278192]
[1772696246439,3.89532435,90.679,90.641,9.927]
[1772696247935,3.69507741,90.669,90.641,9.927]
[1772696248739,3.50343559,90.66,90.641,9.927]
[1772696250228,3.50343559,90.66,90.631,9.928]
[1772696250430,3.50343559,90.65,90.631,9.928]
[1772696250734,3.50343559,90.66,90.613,3.76382476]
[1772696254041,3.69507741,90.659,90.613,3.76382476]
[1772696254234,3.50343559,90.65,90.613,3.76382476]
[1772696257745,3.69507741,90.659,90.613,3.76382476]
[1772696258546,3.69507741,90.659,90.616,9.93]
[1772696259544,3.69507741,90.659,90.618,9.93]
[1772696259843,3.69507741,90.659,90.618,13.69382476]
[1772696261647,3.69507741,90.659,90.626,9.929]
[1772696262644,3.69507741,90.659,90.618,3.76382476]
[1772696262849,3.50343559,90.66,90.618,3.76382476]
[1772696265852,3.69507741,90.659,90.612,9.93]
[1772696266350,3.69507741,90.659,90.612,13.69382476]
[1772696266552,3.69507741,90.659,90.613,3.76382476]
[1772696266756,3.69507741,90.659,90.6,3.50343559]
[1772696266757,3.69507741,90.659,90.604,3.76382476]
[1772696267552,3.50343559,90.65,90.604,3.76382476]
[1772696267947,3.69507741,90.659,90.604,3.76382476]
[1772696268348,3.69507741,90.659,90.606,9.931]
[1772696268655,3.69507741,90.659,90.611,3.76382476]
[1772696271962,3.50418613,90.64,90.6,3.67072215]
[1772696274353,3.92745665,90.639,90.6,3.67072215]
[1772696274858,3.92745665,90.639,90.598,9.932]
[1772696276161,3.92745665,90.639,90.599,3.67072215]
[1772696276761,3.92745665,90.639,90.601,9.932]
[1772696277063,3.92745665,90.639,90.601,13.60272215]
[1772696277264,3.92745665,90.629,90.577,3.67072215]
[1772696277459,3.92745665,90.629,90.581,3.67072215]
[1772696278562,3.92745665,90.629,90.57,3.50418613]
[1772696278563,3.92745665,90.629,90.586,13.60372215]
[1772696281762,3.92745665,90.629,90.588,3.67072215]
[1772696281967,3.92745665,90.645,90.61,3.50418613]
[1772696282170,3.92745665,90.645,90.601,3.67072215]
[1772696283369,10.23314451,90.676,90.561,19.873]
[1772696283370,3.92745665,90.629,90.581,3.67072215]
[1772696284365,3.92745665,90.629,90.585,9.933]
[1772696285168,3.92745665,90.629,90.592,9.933]
[1772696285470,3.92745665,90.629,90.585,3.67072215]
[1772696286868,3.92745665,90.642,90.601,3.67072215]
[1772696287068,3.92745665,90.666,90.621,3.67072215]
[1772696288675,9.925,90.658,90.621,3.67072215]
[1772696290472,13.85245665,90.658,90.621,3.67072215]
[1772696291373,9.925,90.658,90.621,3.67072215]
[1772696291577,13.85245665,90.658,90.621,3.67072215]
[1772696292676,9.926,90.651,90.621,3.67072215]
[1772696293070,9.926,90.651,90.599,9.932]
[1772696293071,9.926,90.651,90.608,3.67072215]
[1772696293678,3.50418613,90.63,90.591,3.67072215]
[1772696295075,9.929,90.629,90.591,3.67072215]
[1772696295280,3.50418613,90.62,90.578,3.67072215]
[1772696297074,3.92745665,90.629,90.578,3.67072215]
[1772696297075,3.50418613,90.61,90.578,3.67072215]
[1772696298481,9.93,90.613,90.578,3.67072215]
[1772696299287,9.93,90.613,90.566,9.935]
[1772696299288,13.58296713,90.613,90.567,3.59563601]
[1772696299487,19.859,90.623,90.52,9.94]
[1772696299686,3.65296713,90.594,90.525,20.59960798]
[1772696299887,3.50418613,90.58,90.53,3.50418613]
[1772696300483,3.50418613,90.57,90.52,9.94]
[1772696300679,3.50418613,90.57,90.52,3.50418613]
[1772696300987,3.50418613,90.57,90.467,34.3584683]
[1772696300988,3.65296713,90.559,90.51,3.50418613]
[1772696301489,3.50418613,90.55,90.51,3.59563601]
[1772696301890,3.50418613,90.54,90.51,3.59563601]
[1772696302185,3.50418613,90.54,90.491,3.59563601]
[1772696302591,3.65296713,90.539,90.491,3.59563601]
[1772696303287,3.65296713,90.563,90.51,3.50418613]
[1772696303493,3.50418613,90.57,90.521,3.59563601]
[1772696303692,3.65296713,90.574,90.521,3.59563601]
[1772696304492,3.65296713,90.574,90.53,3.50418613]
[1772696304688,3.65296713,90.592,90.55,3.50418613]
[1772696305393,3.65296713,90.592,90.541,3.59563601]
[1772696305592,3.50418613,90.59,90.541,3.59563601]
[1772696305793,3.65296713,90.589,90.541,3.59563601]
[1772696305992,3.65296713,90.589,90.542,9.938]
[1772696306391,3.65296713,90.589,90.543,3.59563601]
[1772696307291,3.65296713,90.589,90.55,3.50418613]
[1772696308691,3.65296713,90.589,90.543,3.59563601]
[1772696309484,3.65296713,90.589,90.55,3.50418613]
[1772696309885,3.65296713,90.589,90.543,3.59563601]
[1772696311097,13.81551323,90.585,90.543,3.59563601]
[1772696311293,3.88251323,90.584,90.543,3.59563601]
[1772696311890,3.88251323,90.599,90.55,3.50418613]
[1772696312287,3.88251323,90.599,90.55,7.29955027]
[1772696312488,3.88251323,90.599,90.551,3.79536414]
[1772696312691,9.932,90.598,90.551,3.79536414]
[1772696312891,3.88251323,90.597,90.551,3.79536414]
[1772696314398,3.88251323,90.594,90.551,3.79536414]
[1772696315302,3.88251323,90.589,90.54,3.50418613]
[1772696315498,3.88251323,90.589,90.537,3.79536414]
[1772696316400,3.88251323,90.589,90.541,3.79536414]
[1772696317197,9.933,90.587,90.541,3.79536414]
[1772696317699,3.88251323,90.586,90.541,3.79536414]
[1772696317901,13.81551323,90.585,90.541,3.79536414]
[1772696319193,9.934,90.579,90.541,3.79536414]
[1772696320197,3.88251323,90.578,90.541,3.79536414]
[1772696320504,3.88251323,90.569,90.52,7.29955027]
[1772696320702,3.88251323,90.569,90.521,3.79536414]
[1772696322108,3.88251323,90.569,90.53,3.50418613]
[1772696322308,3.88251323,90.569,90.531,3.79536414]
[1772696324407,3.50418613,90.58,90.531,3.79536414]
[1772696324607,13.81551323,90.593,90.541,3.79536414]
[1772696324804,7.38669936,90.59,90.541,3.79536414]
[1772696325008,3.88251323,90.589,90.541,3.79536414]
[1772696325211,3.88251323,90.586,90.541,3.79536414]
[1772696326413,3.88251323,90.584,90.541,3.79536414]
[1772696326614,3.88251323,90.579,90.53,3.50418613]
[1772696326914,3.88251323,90.579,90.531,3.79536414]
[1772696327514,3.88251323,90.579,90.532,3.79536414]
[1772696327716,3.50418613,90.59,90.541,3.79536414]
[1772696328214,7.38669936,90.59,90.541,3.79536414]
[1772696328414,3.88251323,90.589,90.541,3.79536414]
[1772696329515,9.933,90.587,90.541,3.79536414]
[1772696330112,3.60596896,90.579,90.541,3.79536414]
[1772696330919,3.60596896,90.579,90.53,3.50418613]
[1772696331618,3.50418613,90.57,90.531,3.92976036]
[1772696331819,3.60596896,90.569,90.531,3.92976036]
[1772696332324,3.60596896,90.565,90.518,3.92976036]
[1772696332522,7.11760785,90.56,90.518,3.92976036]
[1772696334116,3.60596896,90.56,90.52,3.51163889]
[1772696335322,9.936,90.559,90.518,3.92976036]
[1772696336623,7.11760785,90.56,90.518,3.92976036]
[1772696337026,3.60596896,90.56,90.518,3.92976036]
[1772696337722,7.11760785,90.56,90.518,3.92976036]
[1772696337919,3.60596896,90.559,90.51,3.51163889]
[1772696338320,3.60596896,90.559,90.512,13.87076036]
[1772696338626,3.60596896,90.559,90.513,3.92976036]
[1772696340524,3.60596896,90.559,90.517,9.941]
[1772696340724,3.60596896,90.559,90.513,3.92976036]
[1772696341325,3.60596896,90.549,90.491,3.92976036]
[1772696341526,3.51163889,90.54,90.491,3.92976036]
[1772696341930,3.60596896,90.549,90.501,3.92976036]
[1772696342528,3.60596896,90.549,90.513,9.941]
[1772696343229,3.51163889,90.57,90.522,3.92976036]
[1772696343525,3.60596896,90.569,90.522,3.92976036]
[1772696346129,3.51163889,90.56,90.522,3.92976036]
[1772696346325,3.60596896,90.559,90.522,3.92976036]
[1772696346530,3.51163889,90.57,90.525,3.92976036]
[1772696346830,7.11760785,90.57,90.525,3.92976036]
[1772696347433,3.60596896,90.569,90.526,9.94]
[1772696350134,3.60596896,90.567,90.525,3.92976036]
[1772696350335,3.60596896,90.559,90.511,3.92976036]
[1772696351136,3.60596896,90.557,90.513,9.941]
[1772696351337,3.60596896,90.557,90.514,3.92976036]
[1772696351732,9.936,90.566,90.518,3.92976036]
[1772696351935,3.60596896,90.559,90.518,3.92976036]
[1772696352135,3.60596896,90.559,90.503,3.92976036]
[1772696352336,3.60596896,90.549,90.503,3.92976036]
[1772696353935,3.60596896,90.549,90.5,3.51163889]
[1772696353936,3.60596896,90.549,90.506,3.92976036]
[1772696354131,3.60596896,90.549,90.511,3.92976036]
[1772696355228,9.937,90.552,90.511,3.92976036]
[1772696355426,7.11760785,90.56,90.511,3.92976036]
[1772696355634,3.60596896,90.559,90.511,3.92976036]
[1772696355827,13.03089869,90.57,90.521,3.92976036]
[1772696356034,3.51163889,90.57,90.521,3.92976036]
[1772696356432,3.51163889,90.55,90.506,3.92976036]
[1772696356737,3.60596896,90.549,90.506,3.92976036]
[1772696357441,3.51163889,90.54,90.497,3.92976036]
[1772696357938,3.51163889,90.54,90.499,9.943]
[1772696358438,3.60596896,90.547,90.507,9.942]
[1772696361940,3.51163889,90.54,90.501,9.943]
[1772696362841,3.51163889,90.54,90.502,3.92656323]
[1772696363041,3.60596896,90.547,90.502,3.92656323]
[1772696363243,3.51163889,90.57,90.521,3.92656323]
[1772696363442,7.37356263,90.57,90.521,3.92656323]
[1772696364238,3.86192374,90.57,90.521,3.92656323]
[1772696364542,3.86192374,90.57,90.529,9.94]
[1772696366646,3.86192374,90.57,90.521,3.92656323]
[1772696368050,13.82343564,90.569,90.521,3.92656323]
[1772696368849,3.88843564,90.569,90.521,3.92656323]
[1772696369647,3.88843564,90.569,90.523,3.91830746]
[1772696369844,9.935,90.57,90.523,3.91830746]
[1772696370052,3.88843564,90.579,90.523,3.91830746]
[1772696370653,3.88843564,90.569,90.525,3.91830746]
[1772696371654,3.88843564,90.569,90.531,3.91830746]
[1772696372253,3.51163889,90.6,90.551,3.91830746]
[1772696372457,3.88843564,90.602,90.561,3.91830746]
[1772696376252,13.44363889,90.6,90.561,3.91830746]
[1772696376857,9.932,90.596,90.561,3.91830746]
[1772696377154,3.51163889,90.58,90.54,3.91830746]
[1772696378155,9.933,90.587,90.54,3.91830746]
[1772696378352,3.88843564,90.609,90.56,3.51163889]
[1772696378546,3.51163889,90.6,90.551,3.91830746]
[1772696378748,3.51163889,90.6,90.503,27.32813714]
[1772696378749,3.88843564,90.589,90.537,3.91830746]
[1772696378953,3.51163889,90.6,90.551,3.91830746]
[1772696379248,3.88843564,90.605,90.561,3.91830746]
[1772696379751,3.88843564,90.617,90.57,3.51163889]
[1772696379956,3.88843564,90.617,90.571,3.91830746]
[1772696381355,3.51163889,90.62,90.537,20.59960798]
[1772696381558,3.88843564,90.583,90.523,3.91830746]
[1772696381859,3.51163889,90.57,90.523,3.91830746]
[1772696382454,9.935,90.57,90.523,3.91830746]
[1772696382655,3.51163889,90.57,90.523,3.91830746]
[1772696383463,3.51163889,90.57,90.524,3.91830746]
[1772696384765,3.51163889,90.58,90.531,3.91830746]
[1772696385455,3.88843564,90.583,90.531,3.91830746]
[1772696385855,3.51163889,90.59,90.472,154.719]
[1772696385856,3.51163889,90.59,90.541,3.91830746]
[1772696387469,3.88843564,90.598,90.543,3.91830746]
[1772696388168,9.932,90.597,90.543,3.91830746]
[1772696389567,3.51163889,90.59,90.543,3.91830746]
[1772696390467,3.51163889,90.58,90.543,3.91830746]
[1772696391069,3.63913519,90.586,90.543,3.91830746]
[1772696391971,3.51163889,90.59,90.543,3.91830746]
[1772696392470,9.932,90.595,90.543,3.91830746]
[1772696392673,3.63913519,90.599,90.551,3.94184191]
[1772696392970,3.63913519,90.599,90.56,7.45090122]
[1772696393167,3.63913519,90.599,90.561,3.94184191]
[1772696393374,3.63913519,90.614,90.561,3.94184191]
[1772696393672,9.93,90.619,90.571,3.94184191]
[1772696393978,3.63913519,90.618,90.571,3.94184191]
[1772696395466,9.93,90.617,90.571,3.94184191]
[1772696396770,9.929,90.626,90.581,3.94184191]
[1772696397574,3.63913519,90.631,90.581,3.94184191]
[1772696399380,9.929,90.628,90.581,3.94184191]
[1772696399578,3.63913519,90.631,90.591,3.94184191]
[1772696399874,3.63913519,90.637,90.591,3.94184191]
[1772696400479,44.0,90.644,90.536,19.878]
[1772696400480,3.63913519,90.629,90.577,3.94184191]
[1772696400780,3.50905931,90.61,90.561,3.94184191]
[1772696402481,3.50905931,90.61,90.564,9.936]
[1772696403285,3.63913519,90.589,90.541,3.94184191]
[1772696403587,3.50905931,90.58,90.541,3.94184191]
[1772696404476,3.50905931,90.61,90.564,3.94184191]
[1772696404682,7.1481945,90.61,90.564,3.94184191]
[1772696404877,3.63913519,90.609,90.564,3.94184191]
[1772696405284,3.63913519,90.607,90.56,3.50905931]
[1772696405484,3.63913519,90.607,90.555,3.94184191]
[1772696405684,3.63913519,90.607,90.56,7.45090122]
[1772696406580,7.1481945,90.62,90.57,3.50905931]
[1772696406780,3.63913519,90.62,90.572,3.94184191]
[1772696407480,3.63913519,90.619,90.572,3.94184191]
[1772696408178,3.63913519,90.619,90.573,9.935]
[1772696412582,3.63913519,90.609,90.564,9.936]
[1772696412787,3.50905931,90.59,90.541,3.94184191]
[1772696414281,3.50905931,90.59,90.548,9.937]
[1772696418582,3.63913519,90.589,90.538,9.939]
[1772696418783,3.50905931,90.57,90.531,3.63488993]
[1772696418994,7.3548926,90.57,90.531,3.63488993]
[1772696421394,7.3548926,90.57,90.532,9.939]
[1772696422199,3.84583329,90.585,90.54,3.63488993]
[1772696423496,3.84583329,90.585,90.542,13.57288993]
[1772696423694,3.84583329,90.599,90.551,3.63488993]
[1772696423896,3.50905931,90.61,90.561,3.63488993]
[1772696424097,7.3548926,90.61,90.561,3.63488993]
[1772696425501,7.3548926,90.61,90.567,9.935]
[1772696426200,7.3548926,90.61,90.573,9.935]
[1772696426699,3.84583329,90.61,90.573,9.935]
[1772696427305,7.3548926,90.61,90.573,9.935]
[1772696428604,3.50905931,90.62,90.58,9.934]
[1772696428807,3.50905931,90.62,90.571,3.75419994]
[1772696429608,3.88587468,90.623,90.573,3.75419994]
[1772696430402,3.88587468,90.609,90.56,3.50905931]
[1772696430611,3.88587468,90.609,90.561,3.75419994]
[1772696430806,3.50905931,90.6,90.561,3.75419994]
[1772696431712,3.88587468,90.589,90.548,3.75419994]
[1772696431901,3.88587468,90.587,90.548,3.75419994]
[1772696433102,9.933,90.585,90.548,3.75419994]
[1772696434515,9.934,90.583,90.54,3.50905931]
[1772696434811,9.934,90.583,90.537,13.69319994]
[1772696435404,3.88587468,90.578,90.537,3.75419994]
[1772696436412,9.934,90.577,90.537,3.75419994]
[1772696436712,3.88587468,90.578,90.537,3.75419994]
[1772696438413,3.88587468,90.578,90.532,9.939]
[1772696438613,7.39493399,90.57,90.524,3.75419994]
[1772696439010,7.39493399,90.57,90.526,3.75419994]
[1772696439415,3.88587468,90.57,90.526,3.75419994]
[1772696439610,7.39493399,90.57,90.535,9.939]
[1772696440112,3.88587468,90.57,90.535,9.939]
[1772696440304,3.88587468,90.57,90.527,9.94]
[1772696440503,7.39493399,90.57,90.527,9.94]
[1772696441113,3.88587468,90.569,90.527,9.94]
[1772696443517,3.88587468,90.569,90.535,9.939]
[1772696444619,3.88587468,90.569,90.526,3.75419994]
[1772696446720,3.88587468,90.569,90.528,9.94]
[1772696447220,3.88587468,90.569,90.526,3.75419994]
[1772696447819,3.88587468,90.569,90.535,9.939]
[1772696448522,3.88587468,90.559,90.527,9.94]
[1772696448724,3.80331185,90.549,90.491,3.61934137]
[1772696449221,3.50905931,90.54,90.491,3.61934137]
[1772696449424,7.31237116,90.54,90.501,9.943]
[1772696449820,3.80331185,90.576,90.521,3.61934137]
[1772696450023,3.80331185,90.549,90.5,3.50905931]
[1772696450224,3.80331185,90.539,90.496,3.61934137]
[1772696452720,3.80331185,90.539,90.5,9.943]
[1772696452920,3.50905931,90.53,90.5,9.943]
[1772696453421,3.80331185,90.539,90.5,9.943]
[1772696455723,3.80331185,90.529,90.481,3.61934137]
[1772696456819,3.51369768,90.54,90.491,3.61934137]
[1772696457024,7.31700953,90.54,90.491,3.61934137]
[1772696457320,3.80331185,90.539,90.491,3.61934137]
[1772696457725,3.80331185,90.539,90.501,3.61934137]
[1772696457926,3.51369768,90.55,90.501,3.61934137]
[1772696459429,3.51369768,90.55,90.505,9.942]
[1772696461633,3.80331185,90.549,90.507,9.942]
[1772696461830,3.80331185,90.549,90.507,13.56134137]
[1772696462532,3.80331185,90.549,90.507,3.61934137]
[1772696464031,3.51369768,90.54,90.49,3.51369768]
[1772696464235,3.80331185,90.539,90.491,3.61934137]
[1772696465036,3.80331185,90.539,90.493,3.61934137]
[1772696465728,3.51369768,90.54,90.493,3.61934137]
[1772696465729,3.80331185,90.537,90.493,3.61934137]
[1772696467535,3.80331185,90.529,90.493,3.61934137]
[1772696468234,3.80331185,90.529,90.484,13.56334137]
[1772696468434,3.80331185,90.529,90.485,3.61934137]
[1772696468839,3.80331185,90.519,90.471,3.61934137]
[1772696469237,3.80331185,90.559,90.491,3.61934137]
[1772696469534,3.80331185,90.519,90.478,3.61934137]
[1772696469927,9.94,90.527,90.478,3.61934137]
[1772696470130,9.94,90.527,90.48,3.51369768]
[1772696470329,9.94,90.527,90.481,3.61934137]
[1772696472037,3.80331185,90.549,90.493,3.61934137]
[1772696472541,3.80331185,90.549,90.49,3.51369768]
[1772696472542,3.80331185,90.549,90.498,3.61934137]
[1772696473040,3.80331185,90.549,90.5,3.51369768]
[1772696473240,3.80331185,90.549,90.501,3.61934137]
[1772696474541,3.80331185,90.549,90.501,13.56234137]
[1772696476242,3.80331185,90.549,90.502,3.61934137]
[1772696478840,3.51369768,90.54,90.502,3.61934137]
[1772696480341,13.45169768,90.54,90.502,3.61934137]
[1772696484450,3.61773095,90.536,90.502,3.61934137]
[1772696485247,3.61773095,90.534,90.487,3.62913393]
[1772696486353,9.939,90.532,90.487,3.62913393]
[1772696487356,9.938,90.54,90.493,3.93052964]
[1772696488052,13.5575715,90.54,90.496,3.93052964]
[1772696489449,3.6195715,90.529,90.485,3.93052964]
[1772696490252,3.6195715,90.523,90.485,3.93052964]
[1772696490447,3.51369768,90.52,90.485,3.93052964]
[1772696492657,3.6195715,90.519,90.476,9.945]
[1772696492857,3.6195715,90.519,90.478,9.945]
[1772696493057,3.6195715,90.519,90.479,3.93052964]
[1772696493457,3.6195715,90.519,90.481,3.93052964]